{"text_format":"3","workbook":"xlsx","n_sheets":1,"sheets":["Planejador de orçamento"],"not_rendered":{"charts":1,"defined_names":1},"read":"whole","date_system":"1900"}

{"sheet":"Planejador de orçamento","index":0,"n_rows":21,"n_cols":6,"rows_kept":21}
[null,"Planejador de orçamento de férias"]
[]
[null,"ORÇAMENTO POR CATEGORIA"]
[null,"Categorias","Orçamento previsto","Orçamento em detalhes","Disponível/(Acima)"]
[null,"Transporte",{"v":750,"d":"R$ 750"},{"$f":"SUMIF(Tabela2[Categoria],Tabela1[[#This Row],[Categorias]],Tabela2[Montante])","v":{"v":720,"d":"R$ 720"}},{"$f":"IFERROR(Tabela1[[#This Row],[Orçamento previsto]]-Tabela1[[#This Row],[Orçamento em detalhes]],\"\")","v":{"v":30,"d":"R$ 30"}}]
[null,"Hospedagem",{"v":250,"d":"R$ 250"},{"$f":"SUMIF(Tabela2[Categoria],Tabela1[[#This Row],[Categorias]],Tabela2[Montante])","v":{"v":300,"d":"R$ 300"}},{"$f":"IFERROR(Tabela1[[#This Row],[Orçamento previsto]]-Tabela1[[#This Row],[Orçamento em detalhes]],\"\")","v":{"v":-50,"d":"-R$ 50"}}]
[null,"Alimentação",{"v":100,"d":"R$ 100"},{"$f":"SUMIF(Tabela2[Categoria],Tabela1[[#This Row],[Categorias]],Tabela2[Montante])","v":{"v":80,"d":"R$ 80"}},{"$f":"IFERROR(Tabela1[[#This Row],[Orçamento previsto]]-Tabela1[[#This Row],[Orçamento em detalhes]],\"\")","v":{"v":20,"d":"R$ 20"}}]
[null,"Atividades",{"v":500,"d":"R$ 500"},{"$f":"SUMIF(Tabela2[Categoria],Tabela1[[#This Row],[Categorias]],Tabela2[Montante])","v":{"v":500,"d":"R$ 500"}},{"$f":"IFERROR(Tabela1[[#This Row],[Orçamento previsto]]-Tabela1[[#This Row],[Orçamento em detalhes]],\"\")","v":{"v":0,"d":"R$ 0"}}]
[null,"Souvenirs",{"v":50,"d":"R$ 50"},{"$f":"SUMIF(Tabela2[Categoria],Tabela1[[#This Row],[Categorias]],Tabela2[Montante])","v":{"v":0,"d":"R$ 0"}},{"$f":"IFERROR(Tabela1[[#This Row],[Orçamento previsto]]-Tabela1[[#This Row],[Orçamento em detalhes]],\"\")","v":{"v":50,"d":"R$ 50"}}]
[null,"Outras Pessoas",{"v":50,"d":"R$ 50"},{"$f":"SUMIF(Tabela2[Categoria],Tabela1[[#This Row],[Categorias]],Tabela2[Montante])","v":{"v":0,"d":"R$ 0"}},{"$f":"IFERROR(Tabela1[[#This Row],[Orçamento previsto]]-Tabela1[[#This Row],[Orçamento em detalhes]],\"\")","v":{"v":50,"d":"R$ 50"}}]
[null,"Fundo de contingência",{"v":200,"d":"R$ 200"},{"$f":"SUMIF(Tabela2[Categoria],Tabela1[[#This Row],[Categorias]],Tabela2[Montante])","v":{"v":0,"d":"R$ 0"}},{"$f":"IFERROR(Tabela1[[#This Row],[Orçamento previsto]]-Tabela1[[#This Row],[Orçamento em detalhes]],\"\")","v":{"v":200,"d":"R$ 200"}}]
[null,"Orçamento total",{"$f":"SUBTOTAL(109,Tabela1[Orçamento previsto])","v":{"v":1900,"d":"R$ 1,900"}},{"$f":"SUBTOTAL(109,Tabela1[Orçamento em detalhes])","v":{"v":1600,"d":"R$ 1,600"}},{"$f":"SUBTOTAL(109,Tabela1[Disponível/(Acima)])","v":{"v":300,"d":"R$ 300"}}]
[]
[null,"DETALHES DAS DESPESAS"]
[null,"Descrição","Categoria","Quantidade","Custo da unidade","Montante"]
[null,"Tarifa Aérea","Transporte",2,{"v":300,"d":"R$ 300"},{"$f":"IFERROR(Tabela2[[#This Row],[Quantidade]]*Tabela2[[#This Row],[Custo da unidade]],\"\")","v":{"v":600,"d":"R$ 600"}}]
[null,"Ônibus e táxi, 2 dias","Transporte",4,{"v":30,"d":"R$ 30"},{"$f":"IFERROR(Tabela2[[#This Row],[Quantidade]]*Tabela2[[#This Row],[Custo da unidade]],\"\")","v":{"v":120,"d":"R$ 120"}}]
[null,"Hotel (2 noites)","Hospedagem",2,{"v":150,"d":"R$ 150"},{"$f":"IFERROR(Tabela2[[#This Row],[Quantidade]]*Tabela2[[#This Row],[Custo da unidade]],\"\")","v":{"v":300,"d":"R$ 300"}}]
[null,"Comida, dois dias","Alimentação",2,{"v":40,"d":"R$ 40"},{"$f":"IFERROR(Tabela2[[#This Row],[Quantidade]]*Tabela2[[#This Row],[Custo da unidade]],\"\")","v":{"v":80,"d":"R$ 80"}}]
[null,"Dia 1, ingressos de show","Atividades",2,{"v":250,"d":"R$ 250"},{"$f":"IFERROR(Tabela2[[#This Row],[Quantidade]]*Tabela2[[#This Row],[Custo da unidade]],\"\")","v":{"v":500,"d":"R$ 500"}}]
[null,"Digite em itens de outras despesas",{"$nulls":3},{"$f":"IFERROR(Tabela2[[#This Row],[Quantidade]]*Tabela2[[#This Row],[Custo da unidade]],\"\")","v":{"v":0,"d":"R$ 0"}}]